Cogmind - Beta 15 @@@ ROGUE MODE // 2025.06.25 @ 19:29:33 Player: Jammed Result: Destroyed by Y-45 Defender with Beam Rifle Performance ------------- Evolutions (0) 0 Regions Visited (2) 400 Robots Destroyed (45) 225 Value Destroyed (824) 824 Prototype IDs (0) 0 Alien Tech Used (0) 0 Bonus (0) 0 TOTAL SCORE: 1449 Bonus ------- None Cogmind --------- Core Integrity 0/250 Matter 196/300 Energy 113/250 System Corruption 0% Temperature Cool (9) Movement Treading (480) Ox4 Location -10/Mines Parts ------- > --- POWER (1) -------- Ion Engine > --- PROPULSION (2) --- Light Treads Wheel > --- UTILITY (2) ------ Heat Sink Huge Storage Unit > --- WEAPON (2) ------- Assault Rifle Assault Rifle > --- INVENTORY (25) --- Light Treads Light Treads Light Treads Light Treads Light Treads Heat Sink Large Storage Unit Seismic Detector Recalibrator Small Laser Small Laser Small Laser Grenade Launcher Grenade Launcher Mining Laser Flail Flail Maul Maul Peak State ------------ > --- POWER ------------ (None) > --- PROPULSION ------- Light Treads Wheel > --- UTILITY ---------- Heat Sink Huge Storage Unit > --- WEAPON ----------- Flail Maul > --- INVENTORY -------- Ion Engine Light Treads Light Treads Light Treads Light Treads Light Treads Light Treads Heat Sink Large Storage Unit Seismic Detector Light Armor Plating Recalibrator Small Laser Small Laser Small Laser Assault Rifle Assault Rifle Grenade Launcher Grenade Launcher Mining Laser Flail Maul [Rating: 10] Favorites ----------- Power Ion Engine Engine Ion Engine Propulsion Light Treads Treads Light Treads Leg Aluminum Leg Wheel Compact Wheel Utility Huge Storage Unit Device Heat Sink Storage Huge Storage Unit Protection Light Armor Plating Weapon Small Laser Energy Gun Small Laser Ballistic Gun Assault Rifle Launcher Grenade Launcher Impact Weapon Maul Build | -11 -10 -10 ------- Run | Yrd Mat Min Slots Evolved . | . . . Power . | . . . Propulsion . | . . . Utility . | . . . Weapon . | . . . Parts Attached 20 | 1 14 5 Power 2 | . 1 1 Engine 2 | . 1 1 Core . | . . . Reactor . | . . . Propulsion 5 | . 4 1 Treads 3 | . 2 1 Leg . | . . . Wheel 2 | . 2 . Hover . | . . . Flight . | . . . Utility 5 | 1 3 1 Device 3 | 1 2 . Storage 1 | . 1 . Processor . | . . . Hackware . | . . . Protection 1 | . . 1 Artifact . | . . . Weapon 8 | . 6 2 Energy Gun 3 | . 3 . Energy Cannon . | . . . Ballistic Gun 2 | . . 2 Ballistic Cannon . | . . . Launcher 1 | . 1 . Special Weapon . | . . . Impact Weapon 2 | . 2 . Slashing Weapon . | . . . Piercing Weapon . | . . . Special Melee Weapon . | . . . Unidentified Prototypes . | . . . Parts Lost 7 | . 5 2 Power 2 | . 2 . Propulsion 2 | . 1 1 Utility 1 | . . 1 Weapon 2 | . 2 . Highest Loss Streak 4 | . 4 2 To Critical Strikes . | . . . Average Backups 14 | 6 13 21 Power . | 1 . . Propulsion 4 | 4 3 5 Utility 3 | . 2 4 Weapon 6 | 1 6 10 Tool/Special . | . . . Unused Backups 12 | . 2 10 Power . | . . . Propulsion 3 | . . 3 Utility 4 | . 2 2 Weapon 5 | . . 5 Tool/Special . | . . . Average Slot Usage (%) 95 | . 97 85 Engine 9 | . 12 . Treads 11 | . 11 14 Leg 4 | . 5 . Wheel 11 | . 10 14 Device 12 | . 14 7 Storage 14 | . 14 14 Protection 1 | . . 6 Energy Gun 21 | . 26 . Impact Weapon 6 | . 1 26 Peak Build Rating 10 | 7 10 10 Average Rating 8 | 6 8 9 On Entrance 7 | 6 7 10 Naked Turns . | . . . Heaviest Build 89 | 11 89 88 Greatest Support 40 | 20 40 10 Greatest Overweight (x) 8 | . 8 8 Average Overweight (x) 4 | . 4 8 Largest Inventory Capacity 25 | 8 25 25 Average Capacity 21 | 8 21 25 Most Carried 22 | 7 22 22 Average Carried 14 | 6 13 21 Final Capacity 25 | 8 25 25 Final Carried 22 | 7 22 19 Class Distribution -------------------- 100% | Mutant Dominant Class ---------------- Mutant | -10/Materials Mutant | -10/Mines Resources | -11 -10 -10 ----------- Run | Yrd Mat Min Matter Collected 385 | 210 135 40 Remotely . | . . . Salvage Created 1396 | 154 1066 176 Parts 68 | 13 45 10 Haulers Intercepted 2 | . 2 . Recyclers Shooed 8 | . 8 . Parts Field Recycled . | . . . Retrieved Matter . | . . . Parts Self-Destructed . | . . . Prevented . | . . . Kills | -11 -10 -10 ------- Run | Yrd Mat Min Combat Hostiles Destroyed 30 | . 21 9 Melee 3 | . . 3 Guns 19 | . 18 1 AOE 6 | . 3 3 Classes Destroyed 10 | 2 7 1 Worker 1 | . 1 . Tunneler 3 | 3 . . Hauler 2 | . 2 . Recycler 4 | 1 3 . Mechanic 1 | . 1 . Operator 1 | . 1 . Watcher 3 | . 3 . Swarmer 15 | . 9 6 Grunt 14 | . 12 2 Sentry 1 | . . 1 Best Kill Streak 4 | 4 3 4 Combat Bots Only 4 | . 3 4 Max Kills in Single Turn 3 | 2 2 3 Gunslinging . | . . . Exploded 3 | . 2 3 Melee 1 | . . 1 Uniques/NPCs Destroyed . | . . . Combat | -11 -10 -10 -------- Run | Yrd Mat Min Hostile Shots Fired 131 | . 89 42 Missed 31 | . 21 10 Hits 100 | . 68 32 Projectile 100 | . 68 32 Critical Strikes 2 | . 2 . Damage Taken 1060 | . 679 381 Core 250 | . 163 87 Absorbed by Shields . | . . . Core Remaining (%) 100 | 100 . . Volleys Fired 102 | 6 91 5 Largest 2 | 2 2 2 Hottest 90 | 80 90 40 Shots Fired 201 | 12 180 9 Gun 198 | 12 178 8 Cannon . | . . . Launcher 3 | . 2 1 Special . | . . . Kinetic 8 | . . 8 Thermal 190 | 12 178 . Explosive 3 | . 2 1 Electromagnetic . | . . . Robot Hit Streak 10 | 7 10 5 Robot Miss Streak 3 | 1 3 1 Penetration Max . | . . . Secondary Targets 3 | . 2 1 Max Gunslinging Chain 1 | . 1 1 Shots Hit Robots 143 | 9 120 14 Core Hits 62 | 5 51 6 Critical Kills . | . . . Critical Parts Destroyed 3 | . . 3 Critical Strikes 7 | . 4 3 Burn 4 | . 4 . Smash 3 | . . 3 Melee Attacks 9 | . . 9 Impact 9 | . . 9 Slashing . | . . . Piercing . | . . . Sneak Attacks 1 | . . 1 Combat Hostiles 1 | . . 1 Follow-up Attacks 1 | . . 1 Damage Inflicted 2259 | 111 1590 558 Guns 1669 | 111 1475 83 Cannons . | . . . Explosions 252 | . 115 137 Melee 338 | . . 338 Ramming . | . . . Kinetic 83 | . . 83 Thermal 1586 | 111 1475 . Explosive 252 | . 115 137 Electromagnetic . | . . . Impact 338 | . . 338 Slashing . | . . . Piercing . | . . . Highest Corruption . | . . . Average Corruption . | . . . Corruption Purged . | . . . Corruption Blocked . | . . . Overload Shots . | . . . Overflow Damage 211 | . . 211 Projectiles . | . . . Explosions 2 | . . 2 Melee 209 | . . 209 Knockbacks . | . . . Impact . | . . . Kinetic . | . . . Secondary . | . . . Self-Inflicted Damage 57 | . 17 40 Shots 3 | . 2 1 Rammed . | . . . Targets Rammed . | . . . Kicked . | . . . Crushed . | . . . Highest Temperature 210 | 36 210 . Average Temperature 56 | 18 61 . Received Heat Transfer 318 | . 264 54 Siege Activations . | . . . Martial Activations . | . . . Shielding Activations . | . . . Robots Disrupted . | . . . Combat Hostiles . | . . . Robots Corrupted 2 | . . 2 Combat Hostiles 2 | . . 2 Parts Fried 3 | . . 3 Impact Corruptions 7 | . . 7 Robots Melted . | . . . Combat Hostiles . | . . . Parts Melted 7 | . 7 . Heat Transferred 4339 | 250 4089 . Parts Sabotaged . | . . . Parts Stolen . | . . . Parts Stripped . | . . . Power Chain Reactions . | . . . Alert | -11 -10 -10 ------- Run | Yrd Mat Min Maximum Alert Level . | . . . Low Security (%) 100 | 100 100 100 Level 1 . | . . . Level 2 . | . . . Level 3 . | . . . Level 4 . | . . . Level 5 . | . . . High Security . | . . . Max Security . | . . . Peak Influence 160 | 10 160 120 Initial 37 | . . 37 Average 76 | 3 87 43 Influence Increases 961 | 20 694 247 Destroy 0b10 Robot/C 600 | . 420 180 Destroy 0b10 Robot/NC 75 | 20 55 . Destroy Leader 120 | . 90 30 Successful Hack 10 | . 10 . Select Force Hacks 30 | . 30 . Destroy Structure 21 | . 14 7 Partial Spotted 15 | . 15 . Lose Combat Pursuer 90 | . 60 30 Influence Decreases 890 | 20 598 272 Entered New Map 59 | . . 59 Time Decay 771 | 20 548 203 Lost Part 60 | . 50 10 Squads Dispatched 4 | . 4 . Investigation 3 | . 3 . Extermination . | . . . Reinforcement 1 | . 1 . Assault . | . . . Garrison . | . . . Intercept . | . . . Searches Triggered . | . . . Construction Impeded . | . . . Haulers Reinforced . | . . . Active Scanning Responses . | . . . Cargo Convoy Interrupts . | . . . Stealth | -11 -10 -10 --------- Run | Yrd Mat Min Distress Signals 3 | . 3 . Communications Jammed . | . . . Distress Signals . | . . . Times Spotted 43 | . 32 11 Peak Tracking Total 4 | . 4 4 Tactical Retreats 6 | . 4 2 Traps | -11 -10 -10 ------- Run | Yrd Mat Min Traps Triggered 2 | . 2 . Indirectly . | . . . Trap Hack Attempts . | . . . Triggered . | . . . Disarmed . | . . . Reprogrammed . | . . . Reused . | . . . Traps Extracted . | . . . Installed . | . . . Triggered . | . . . Machines | -11 -10 -10 ---------- Run | Yrd Mat Min Machines Disabled . | . . . Max in Single Turn . | . . . Machines Repaired . | . . . Machines Dismantled . | . . . Machines Sabotaged . | . . . Overloaded Fab Kills . | . . . Hacking | -11 -10 -10 --------- Run | Yrd Mat Min Machines Accessed 7 | . 7 . Terminals 6 | . 6 . Fabricators . | . . . Repair Stations . | . . . Recycling Units 1 | . 1 . Scanalyzers . | . . . Garrison Access . | . . . Total Hacks 24 | . 24 . Successful 15 | . 15 . Failed 8 | . 8 . Catastrophic 1 | . 1 . Database Lockouts 1 | . 1 . Manual 21 | . 21 . Terminals 21 | . 21 . Fabricators . | . . . Repair Stations . | . . . Recycling Units 3 | . 3 . Scanalyzers . | . . . Garrison Access . | . . . Terminal Hacks 4 | . 4 . Robot Analysis 2 | . 2 . Terminal Index 1 | . 1 . Alert Level 1 | . 1 . Fabricator Hacks . | . . . Repair Station Hacks . | . . . Recycling Unit Hacks 1 | . 1 . Retrieve Components 1 | . 1 . Scanalyzer . | . . . Garrison Access Hacks . | . . . Unauthorized Hacks 10 | . 10 . Terminals 9 | . 9 . Botnet 3 | . 3 . Operators 1 | . 1 . Skim 5 | . 5 . Fabricators . | . . . Repair Stations . | . . . Recycling Units 1 | . 1 . Tunnel 1 | . 1 . Scanalyzers . | . . . Garrison Access . | . . . Data Cores Recovered . | . . . Used . | . . . Hacking Detections 6 | . 6 . Full Trace Events . | . . . Feedback Events . | . . . Feedback Blocked . | . . . Robot Schematics Acquired . | . . . Robots Built . | . . . Authchips . | . . . Time . | . . . Total Robot Build Rating . | . . . Part Schematics Acquired . | . . . Parts Built . | . . . Authchips . | . . . Time . | . . . Total Part Build Rating . | . . . Parts Repaired . | . . . Time . | . . . Parts Recycled . | . . . Recycled Matter . | . . . Retrieved Matter . | . . . Retrieved Components 6 | . 6 . Parts Scanalyzed . | . . . Part Schematics Acquired . | . . . Parts Damaged . | . . . Bothacking | -11 -10 -10 ------------ Run | Yrd Mat Min Used RIF Installer . | . . . Robots Hacked . | . . . Non-combat . | . . . Combat . | . . . Robot Hacks Applied . | . . . Relay Couplers Released . | . . . Fabnet Peak Effective % . | . . . Robots Rewired . | . . . Allies Hacked . | . . . Hacks Repelled . | . . . Allies | -11 -10 -10 -------- Run | Yrd Mat Min Total Allies . | . . . Largest Group . | . . . Highest-Rated Group . | . . . Highest-Rated Ally . | . . . Total Orders . | . . . Ally Attacks . | . . . Total Damage . | . . . Kills . | . . . Allies Corrupted . | . . . Allies Melted . | . . . Intel | -11 -10 -10 ------- Run | Yrd Mat Min Active Infowar (turns) 405 | 28 191 186 Seismic 405 | 28 191 186 Robot Analysis Total 2 | . 2 . Derelict Logs Recovered 1 | . . 1 Drone Launches . | . . . Drone Recoveries . | . . . Exploration | -11 -10 -10 ------------- Run | Yrd Mat Min Turns Passed 2440 | 67 1893 480 Spaces Moved 1007 | 36 769 202 Core . | . . . Treads 5 | . 5 . Legs 173 | 36 137 . Wheels 829 | . 627 202 Hover . | . . . Flight . | . . . Fastest Speed 120 | 120 120 200 Average Speed 172 | 120 168 200 Slowest Speed 320 | 120 320 200 Overloaded Moves . | . . . Propulsion Burnouts . | . . . Robots Hopped . | . . . Potential Cave-ins . | . . . Cave-ins Triggered . | . . . Exploration Rate (%) 47 | 3 99 41 Regions Visited 2 Branch Regions 1 Pre-discovered Areas 1 | . 1 . Known Exits Taken . | . . . Unknown Exits Taken 2 | 1 1 . Scrap Searched . | . . . Spaces Dug . | . . . Terrain Destroyed 18 | . 11 7 Melee . | . . . Projectile . | . . . AOE 18 | . 11 7 Terrain Rammed . | . . . Walls Destroyed . | . . . Machines Disabled . | . . . Actions | -11 -10 -10 --------- Run | Yrd Mat Min Total 1484 | 47 1188 249 Wait 313 | 4 285 24 Move 1005 | 35 768 202 Hop . | . . . Pick Up 24 | 1 23 . Fast Attach 1 | 1 . . Attach 9 | . 6 3 Detach . | . . . Swap 16 | . 9 7 Drop 6 | . 6 . Fire 102 | 6 91 5 Melee 8 | . . 8 Ram . | . . . Kick . | . . . Crush . | . . . Escape Stasis . | . . . Rewire . | . . . Trap . | . . . Miscellaneous . | . . . Route ------- -11/Scrapyard -10/Materials (discovered 6 exits: [*Mat x3] / [*Min x2] / *Sub) -10/Mines (discovered 2 exits: [*Mat] / *Sub) History --------- Turn | Location | Event 8 | -11/Scrapyard | Discovered new exit (range 3) 68 | -11/Scrapyard | Entered Materials 318 | -10/Materials | Build established: Mutant 409 | -10/Materials | Discovered new exit (range 13) 687 | -10/Materials | Discovered new exit (range 12) 939 | -10/Materials | Discovered new exit (range 16) 1353 | -10/Materials | Core integrity fell below 50% 1379 | -10/Materials | Discovered new exit (range 10) 1510 | -10/Materials | Discovered new exit (range 8) 1713 | -10/Materials | Central database locked down 1756 | -10/Materials | Discovered new exit (range 11) 1770 | -10/Materials | Learned location of 3 exits from Materials 1781 | -10/Materials | Lost 4 parts (1p1n2w) 1851 | -10/Materials | Learned 4 Subcaves zone layouts 1877 | -10/Materials | Learned Storage stockpile data 1901 | -10/Materials | Learned location of 2 exits from Materials 1961 | -10/Materials | Entered Mines 1962 | -10/Mines | Met a Derelict bent on vengeance 1962 | -10/Mines | Identified exit to Subcaves 2037 | -10/Mines | Learned Materials non-interactive machine intel 2230 | -10/Mines | Discovered new exit (range 4) 2430 | -10/Mines | Core integrity fell below 20% 2441 | -10/Mines | Destroyed by Y-45 Defender with Beam Rifle Last Messages --------------- 02139_ Destroyed Flight Unit. 02139_ S-10 Pest system corrupted by crushing effect. 02140_ S-10 Pest system terminally corrupted. 02140_ Lgt. Ion Engine fried. 02140_ Flight Unit fried. 02230_ EXIT=FOUND 02416_ Lgt. Treads destroyed. 02419_ S-10 Pest destroyed. 02419_ Destroyed Flight Unit. 02419_ S-10 Pest destroyed. 02419_ Lgt. Armor Plating destroyed. 02419_ Destroyed Lgt. Armor Plating. 02419_ S-10 Pest destroyed. 02427_ U-05 Engineer lays Concrete. 02432_ Y-45 Defender suffers critical hit (Burn). 02433_ U-05 Engineer lays Concrete. 02434_ U-05 Engineer builds a Wall. 02435_ Y-45 Defender destroyed. 02435_ Switching to secondary target: Y-45 Defender. 02439_ U-05 Engineer lays Concrete. Map ----- +----------------------------------------------------+ | | | | | | | | | | | | | ?????????????????????????????????????????????????? | | ?????????????????????????????????????????????????? | | ???????????????????????????????####??????????????? | | ????????????????????????????#### ##?????????????? | | ????????????????????????????? ##??????????### | | ??????????????????????????????# ##????????## | | ??????????????????????????????# #?######?# | | ?????????????????????# ???????# #?# ### | | ?????????????????????# ####### """ #?? >??# | | ?????????????????????# """ #?? #??# | | ?????????????????????# """ ##? #??## | | ?????????????????????###### ## #???## | | ??????????????????????????## ## #?????? | | ????????????????###????????## #?????? | | ?????????????????" ????????#### ### ##?????? | | ???????????????#?? !???######## #?##### #??????# | | ???????????????#!! ?[/### ## ####### #??????# | | ????????????????? # = # ##????## | | ???????????????###++# Y%! ######### ##??## | | ???????????????# [[[@ ######## ##?# | | ???????????????# =%%%u ## #?# | | ???????????????# * # t #?# | | ???????????????# ############# ### ### | | ??????????????# ?????????????# ### | | ??????????????# ??????????????# | | ??????????????# ???????????????###### ##### | | ????????????? t?????????????????????## #???## | | ?????????????## ????????????????????????### #????# | | ??????????????#???????????????????????????# ###### | | ??????????????????????????????????????????# % | | ??????????????????????????????????? ### ## | | ?????????????????????????????????# = ??##### ## | | ?????????????????????????????????## ?????????# | | ?????????????????????????????????????????????# | | ?????????????????????????????????????????????# | | ?????????????????????????????????????????????# | | ?????????????????????????????????????????????## | | ??????????????????????????????????????????????## | | ??????????????????????????????????????????????## | | ??????????????????????????????????????????????# | | ??????????????????????????????????????? | | ??????????????????????????????????????### #### | | ?????????????????????????????????????????????## | | ??????????????????????????????????????????????## | +----------------------------------------------------+ Best States ------------- Heat Dissipation 35 Energy Generation 10 Energy Capacity 250 Matter Stores 300 Matter Capacity 300 Sight Range 16 Terrain Scan Density 10 Armor Coverage 150 Evasion (%) 55 Recoil Reduction 2 Item Schematics ----------------- None Robot Schematics ------------------ None Fabricated ------------ Nothing Repaired ---------- Nothing Alien Tech Used ----------------- None Achievements -------------- None Challenges ------------ None Game ------ Seed AssemblyTargetSource Manual? 0 Play Time 00:12:19 Cumulative 300.3 hours Start 2025.06.25 @ 19:16:50 End 2025.06.25 @ 19:29:33 Sessions 1 Manual Loads 0 Difficulty Rogue Special Mode None Game No. 188 Rogue 188 Adventurer 0 Explorer 0 Win Type - Total 2 Types 1/0/0/1/0/0/0/0/0/0 Lore% 81 Gallery% 65 Achievement% 63 Wizard Run 0 Options --------- Layout 0 ASCII 0 Keyboard 0 Movement Mouse Keybinds 0 Fullscreen 1 Font 18/SmallcapsGlow Map View 76x50 Zoom Use 0% Tactical HUD 1 Map Filters NONE Filters NONE Steam 1 RUN: 63b8289f-5550-45ef-a00e-1dcd71286d73